bitfinex/quotes_SOLUSD_20250316
["timestamp","ask_amount","ask_price","bid_price","bid_amount"]
[1742140874591,39.35107443,129.0,128.99,0.03]
[1742140875591,58.14307686,129.0,128.99,0.03]
[1742140878020,39.35107443,129.0,128.99,0.03]
[1742140878389,58.14307686,129.0,128.99,0.03]
[1742140880317,39.35107443,129.0,128.99,0.03]
[1742140880608,58.14307686,129.0,128.99,0.03]
[1742140883116,80.760534,129.0,128.99,0.03]
[1742140890110,38.79181043,128.98,128.97,0.063]
[1742140890312,57.63210283,128.98,128.97,0.063]
[1742140890498,57.7742644,128.98,128.96,0.063]
[1742140890702,20.14216157,128.95,128.94,0.063]
[1742140890911,99.135434,128.95,128.94,0.063]
[1742140897522,0.14216157,128.94,128.93,0.063]
[1742140897824,67.14362357,128.94,128.93,0.063]
[1742140899732,85.935434,128.94,128.93,0.063]
[1742140900022,18.98245397,128.94,128.93,0.063]
[1742140900411,85.935434,128.94,128.93,0.063]
[1742140906213,18.98245397,128.94,128.93,0.063]
[1742140913113,67.14362357,128.94,128.93,0.063]
[1742140913315,18.98245397,128.94,128.93,0.063]
[1742140913942,12.0402924,128.94,128.93,0.063]
[1742140914142,18.8402924,128.94,128.93,0.063]
[1742140915417,18.9032924,128.96,128.93,0.063]
[1742140915743,12.0402924,128.95,128.93,0.063]
[1742140917141,18.9032924,128.96,128.93,0.063]
[1742140917955,0.063,128.96,128.93,0.063]
[1742140918248,6.863,128.96,128.93,0.063]
[1742140919438,6.863,128.96,128.93,12.1032924]
[1742140919645,0.063,128.96,128.94,13.6054924]
[1742140920239,0.063,128.96,128.95,18.1090924]
[1742140920428,0.063,128.96,128.95,6.0688]
[1742140921449,0.063,128.96,128.95,18.1090924]
[1742140921658,0.063,129.0,128.95,18.25125397]
[1742140921950,0.063,129.0,128.97,12.0402924]
[1742140922119,0.063,129.0,128.96,12.0402924]
[1742140922820,0.063,129.0,128.97,12.0402924]
[1742140924031,0.063,129.0,128.98,13.7022924]
[1742140924438,0.063,129.0,128.99,18.2155924]
[1742140924618,0.063,129.0,128.99,6.1753]
[1742140924814,0.063,129.0,128.99,18.2155924]
[1742140925415,0.063,129.0,128.99,118.70740283]
[1742140925621,0.063,129.06,129.0,18.79181043]
[1742140925821,0.063,129.06,129.02,12.0402924]
[1742140926023,12.1032924,129.06,129.01,12.0402924]
[1742140926221,12.0402924,129.05,129.0,112.53210283]
[1742140926861,12.0402924,129.03,129.0,81.7]
[1742140927027,12.0402924,129.03,128.99,6.1753]
[1742140927230,0.063,129.06,129.0,12.18245397]
[1742140927535,12.0402924,129.05,129.0,12.0402924]
[1742140927948,12.0402924,129.04,129.0,12.0402924]
[1742140928241,12.0402924,129.03,128.99,99.9155924]
[1742140928444,12.0402924,129.04,128.99,99.9155924]
[1742140930037,12.0402924,129.05,129.0,12.0402924]
[1742140930526,12.0402924,129.04,128.99,99.9155924]
[1742140931527,12.0402924,129.01,128.99,6.1753]
[1742140932536,12.0402924,129.02,128.99,6.1753]
[1742140932723,38.8202924,129.03,128.99,6.1753]
[1742140932931,18.8202924,129.03,128.99,6.1753]
[1742140933227,38.8202924,129.03,128.99,6.1753]
[1742140933428,6.78,129.03,128.99,18.2155924]
[1742140934337,12.0402924,129.04,128.99,18.2155924]
[1742140934927,0.063,129.02,128.99,18.2155924]
[1742140936450,0.063,129.02,128.99,6.1753]
[1742140937152,0.063,129.02,128.99,18.2155924]
[1742140938028,0.063,129.02,129.01,12.0402924]
[1742140938430,0.063,129.02,129.0,12.0402924]
[1742140941858,0.063,129.02,129.01,12.0402924]
[1742140944146,0.063,129.02,129.01,120.77423982]
[1742140944647,0.063,129.02,129.01,120.63207825]
[1742140944843,0.063,129.02,129.01,119.47000283]
[1742140945655,0.063,129.02,129.01,7.8379]
[1742140945859,0.063,129.02,128.99,92.8402924]
[1742140946161,0.063,129.02,129.0,12.0402924]
[1742140947172,0.063,129.02,129.01,12.0402924]
[1742140949762,0.063,129.02,129.01,30.9742644]
[1742140949959,0.063,129.02,129.01,38.6870644]
[1742140950545,0.063,129.02,129.01,119.4870644]
[1742140952660,0.063,129.02,129.01,119.34490283]
[1742140952860,0.063,129.02,129.01,100.5530924]
[1742140953364,0.063,129.02,129.01,107.29801778]
[1742140953551,0.063,129.02,129.01,126.08982821]
[1742140953744,0.063,129.02,129.01,107.29801778]
[1742140954466,0.063,129.02,129.01,126.23198978]
[1742140954842,0.063,129.02,129.01,126.08982821]
[1742140956573,0.063,129.02,129.01,107.29801778]
[1742140957273,0.063,129.02,129.01,126.08982821]
[1742140959075,0.063,129.02,129.01,126.23198978]
[1742140964378,0.063,129.02,129.01,133.01198978]
[1742140968885,0.063,129.06,129.05,37.57702821]
[1742140969084,0.063,129.06,129.05,99.52221778]
[1742140969868,0.063,129.06,129.05,80.737]
[1742140970287,0.063,129.06,129.05,99.52221778]
[1742140972589,0.063,129.06,129.05,18.78521778]
[1742140973172,0.063,129.06,129.05,12.01457557]
[1742140975990,0.063,129.06,129.05,12.15673714]
[1742140977406,0.063,129.06,129.05,12.29889871]
[1742140977769,0.063,129.06,129.05,167.81514985]
[1742140978988,0.063,129.07,129.06,18.79181043]
[1742140979287,0.063,129.07,129.06,167.54319047]
[1742140979480,0.063,129.07,129.06,166.38168828]
[1742140979997,0.063,129.07,129.06,166.52384985]
[1742140980170,12.01457557,129.16,129.08,38.79181043]
[1742140980374,12.01457557,129.19,129.14,12.01457557]
[1742140980878,12.17015574,129.21,129.15,12.01457557]
[1742140981215,12.01457557,129.2,129.15,12.01457557]
[1742140982188,0.03,129.2,129.16,12.01457557]
[1742140982592,12.04457557,129.2,129.15,12.01457557]
[1742140983171,18.7744131,129.2,129.15,18.7444131]
[1742140983591,18.7444131,129.19,129.14,18.7444131]
[1742140983898,18.7444131,129.18,129.13,37.39406196]
[1742140984086,18.7444131,129.19,129.14,18.7444131]
[1742140984886,18.7744131,129.2,129.15,18.7444131]
[1742140986174,0.03,129.2,129.17,18.7444131]
[1742140987689,0.03,129.2,129.15,80.674]
[1742140987690,0.03,129.2,129.15,99.4184131]
[1742140987880,0.03,129.2,129.16,18.7444131]
[1742140988080,18.7744131,129.2,129.15,99.4184131]
[1742140988577,18.7444131,129.19,129.14,24.7861131]
[1742140988783,18.7444131,129.18,129.13,37.39406196]
[1742140989099,0.03,129.2,129.13,37.39406196]
[1742140989302,18.7444131,129.18,129.13,37.39406196]
[1742140990006,18.7444131,129.17,129.12,99.56057467]
[1742140991880,18.7444131,129.18,129.12,99.56057467]
[1742140992405,18.7444131,129.18,129.13,18.7444131]
[1742140993582,18.7444131,129.17,129.13,0.063]
[1742140993885,18.7444131,129.18,129.13,18.8074131]
[1742140994386,18.7444131,129.17,129.13,0.063]
[1742140994783,18.7444131,129.18,129.13,18.8074131]
[1742140995199,20.17216157,129.2,129.13,18.8074131]
[1742140995405,18.7444131,129.18,129.13,18.8074131]
[1742140995701,18.7444131,129.17,129.13,0.063]
[1742140997805,18.7444131,129.14,129.13,0.063]
[1742141000007,18.88657467,129.14,129.13,0.063]
[1742141001297,18.7444131,129.14,129.13,0.063]
[1742141001618,25.5244131,129.15,129.13,0.063]
[1742141002419,6.78,129.15,129.13,0.063]
[1742141002989,25.5244131,129.15,129.13,0.063]
[1742141003390,6.78,129.15,129.13,0.063]
[1742141003607,25.5244131,129.18,129.13,18.8074131]
[1742141003807,18.7444131,129.18,129.13,18.8074131]
[1742141004011,25.5244131,129.19,129.14,18.7444131]
[1742141004196,25.5244131,129.19,129.13,18.8074131]
[1742141004394,18.7444131,129.18,129.13,18.8074131]
[1742141005714,18.7444131,129.16,129.13,0.063]
[1742141006304,18.7444131,129.17,129.13,0.063]
[1742141007827,18.7444131,129.18,129.13,18.8074131]
[1742141008028,25.5244131,129.19,129.14,18.7444131]
[1742141009214,18.7444131,129.19,129.14,18.7444131]
[1742141009512,18.7444131,129.18,129.13,80.737]
[1742141009720,18.7444131,129.18,129.13,99.4814131]
[1742141011121,12.00001894,129.18,129.13,80.737]
[1742141011303,12.00001894,129.17,129.13,80.737]
[1742141011705,12.00001894,129.18,129.13,92.73701894]
[1742141012517,12.00001894,129.19,129.13,92.73701894]
[1742141012725,12.00001894,129.19,129.14,19.64741894]
[1742141013111,12.00001894,129.19,129.14,7.6474]
[1742141013313,12.00001894,129.19,129.14,19.64741894]
[1742141014927,0.03,129.2,129.17,12.00001894]
[1742141016720,0.03,129.2,129.16,12.00001894]
[1742141017129,0.03,129.2,129.16,18.73869087]
[1742141017629,18.76869087,129.2,129.15,19.02301401]
[1742141017831,18.73869087,129.19,129.15,18.73869087]
[1742141018327,18.76869087,129.2,129.15,18.73869087]
[1742141020427,0.03,129.2,129.16,18.88085244]
[1742141020616,0.03,129.2,129.17,18.73869087]
[1742141020809,0.03,129.2,129.18,18.73869087]
[1742141021020,0.03,129.2,129.16,0.14216157]
[1742141021021,0.03,129.2,129.17,18.73869087]
[1742141021211,0.03,129.2,129.18,18.73869087]
[1742141021727,0.03,129.2,129.19,45.32006287]
[1742141022320,0.03,129.2,129.19,45.1779013]
[1742141022720,0.03,129.2,129.19,45.32006287]
[1742141024335,0.03,129.2,129.19,45.1779013]
[1742141025018,0.03,129.2,129.19,26.38609087]
[1742141025221,0.03,129.2,129.19,6.0629]
[1742141026523,0.03,129.2,129.18,80.674]
[1742141027918,0.03,129.2,129.18,99.41269087]
[1742141028118,0.03,129.2,129.19,37.5305013]
[1742141028318,0.03,129.2,129.19,37.67266287]
[1742141031134,0.03,129.2,129.19,118.34666287]
[1742141036240,0.03,129.2,129.19,80.674]
[1742141037235,0.03,129.2,129.19,99.41269087]
[1742141037437,0.03,129.2,129.19,118.2045013]
[1742141040343,0.03,129.2,129.19,80.674]
[1742141041941,18.76869087,129.2,129.16,6.1493]
[1742141042242,18.73869087,129.19,129.16,6.1493]
[1742141042450,0.03,129.2,129.16,6.1493]
[1742141042622,18.76869087,129.2,129.16,6.1493]
[1742141044436,0.03,129.2,129.16,6.1493]
[1742141044639,18.76869087,129.2,129.16,6.1493]
[1742141045049,18.76869087,129.2,129.16,43.53763973]
[1742141045354,0.03,129.2,129.17,18.73869087]
[1742141046128,0.03,129.2,129.17,37.38833973]
[1742141046457,0.03,129.2,129.17,37.5305013]
[1742141046951,0.03,129.2,129.18,18.73869087]
[1742141047364,0.03,129.2,129.18,80.674]
[1742141048231,0.03,129.2,129.18,99.41269087]
[1742141052764,0.03,129.2,129.16,24.88799087]
[1742141054056,0.03,129.2,129.17,18.73869087]
[1742141054250,0.03,129.2,129.18,18.73869087]
[1742141055133,0.03,129.2,129.18,11.98957012]
[1742141056948,0.03,129.2,129.17,30.63921898]
[1742141057147,0.03,129.2,129.17,37.3857224]
[1742141057534,0.03,129.2,129.17,99.41007354]
[1742141057745,0.03,129.2,129.17,80.674]
[1742141060062,0.03,129.2,129.16,24.88537354]
[1742141061862,0.03,129.2,129.17,18.73607354]
[1742141062452,0.03,129.2,129.18,18.73607354]
[1742141062759,0.03,129.2,129.19,18.73607354]
[1742141062968,0.03,129.2,129.17,99.46581043]
[1742141063159,0.03,129.2,129.17,99.41007354]
[1742141065370,0.03,129.2,129.17,80.674]
[1742141065571,0.14216157,129.24,129.17,80.674]
[1742141065869,18.73607354,129.23,129.17,18.73607354]
[1742141066245,6.79,129.25,129.19,18.73607354]
[1742141066445,18.73607354,129.24,129.19,18.73607354]
[1742141066863,6.79,129.25,129.2,18.73607354]
[1742141067066,25.52607354,129.25,129.2,18.73607354]
[1742141067261,0.03,129.25,129.21,18.73607354]
[1742141067445,0.03,129.25,129.22,18.73607354]
[1742141067869,0.03,129.25,129.23,18.73607354]
[1742141068663,0.03,129.25,129.22,18.73607354]
[1742141072076,0.03,129.25,129.21,6.5191]
[1742141072279,0.03,129.25,129.22,18.73607354]
[1742141073277,0.03,129.25,129.21,87.1931]
[1742141073489,0.03,129.25,129.21,105.92917354]
[1742141074564,0.03,129.25,129.22,18.73607354]
[1742141076973,0.03,129.25,129.21,105.92917354]
[1742141079073,0.03,129.25,129.21,87.1931]
[1742141079258,0.03,129.25,129.21,99.17716268]
[1742141080176,12.01406268,129.25,129.21,80.674]
[1742141081480,0.03,129.25,129.18,94.25066268]
[1742141081658,11.98406268,129.22,129.18,80.674]
[1742141081854,11.98406268,129.2,129.18,80.674]
[1742141082060,11.98406268,129.2,129.16,92.72106268]
[1742141082278,11.98406268,129.21,129.16,92.72106268]
[1742141086780,11.98406268,129.21,129.17,11.98406268]
[1742141086985,11.98406268,129.22,129.17,11.98406268]
[1742141089077,7.7376,129.24,129.17,11.98406268]
[1742141089078,6.79,129.25,129.17,11.98406268]
[1742141089282,12.01406268,129.25,129.18,0.14216157]
[1742141089482,0.03,129.25,129.22,11.98406268]
[1742141090472,0.03,129.25,129.21,11.98406268]
[1742141091177,12.01406268,129.25,129.21,11.98406268]
[1742141092289,11.98406268,129.22,129.18,92.65806268]
[1742141092490,11.98406268,129.2,129.18,80.674]
[1742141093189,11.98406268,129.21,129.18,80.674]
[1742141094990,11.98406268,129.19,129.16,0.063]
[1742141095172,18.74525267,129.19,129.16,0.063]
[1742141096995,18.74525267,129.17,129.16,0.063]
[1742141100092,18.74525267,129.18,129.16,0.063]
[1742141100302,18.74525267,129.2,129.16,0.063]
[1742141100797,27.02175267,129.22,129.17,18.74525267]
[1742141101097,0.03,129.25,129.21,18.74525267]
[1742141101393,0.03,129.25,129.22,18.74525267]
[1742141101598,0.03,129.26,129.25,0.14216157]
[1742141101894,12.20015574,129.27,129.25,119.51325673]
[1742141102097,12.20015574,129.27,129.26,20.40621424]
[1742141102280,12.20015574,129.27,129.26,39.19802467]
[1742141102281,0.03,129.27,129.26,39.19802467]
[1742141102477,0.03,129.3,129.29,20.14216157]
[1742141102690,0.03,129.3,129.29,157.09847734]
[1742141102895,9.12626827,129.32,129.3,18.79181043]
[1742141103078,12.20015574,129.35,129.34,18.79181043]
[1742141103272,6.81946683,129.36,129.35,0.78432314]
[1742141103498,72.66944534,129.37,129.36,18.933972]
[1742141103706,72.66944534,129.37,129.36,56.42447734]
[1742141103875,72.66944534,129.37,129.36,56.92447734]
[1742141104077,51.37144535,129.37,129.36,56.42447734]
[1742141104506,18.74525267,129.44,129.37,0.28432314]
[1742141104708,18.74525267,129.42,129.37,0.28432314]
[1742141104997,18.74525267,129.42,129.37,19.02957581]
[1742141105205,29.88389779,129.42,129.37,30.16822093]
[1742141105593,7.7249,129.46,129.37,30.16822093]
[1742141105594,29.88389779,129.41,129.37,30.16822093]
[1742141105793,29.88389779,129.41,129.38,15.19146126]
[1742141106191,2.97992371,129.41,129.4,23.95395189]
[1742141107006,29.88389779,129.41,129.4,23.95395189]
[1742141107909,29.88389779,129.41,129.4,11.96461528]
[1742141108928,37.61119779,129.41,129.38,48.69716754]
[1742141109124,29.88389779,129.39,129.38,48.69716754]
[1742141109431,6.83,129.42,129.38,48.69716754]
[1742141109627,29.88389779,129.41,129.38,48.69716754]
[1742141110017,29.88389779,129.4,129.38,48.69716754]
[1742141110421,29.88389779,129.4,129.38,60.66178282]
[1742141111228,29.88389779,129.4,129.38,48.69716754]
[1742141111421,29.88389779,129.39,129.38,48.69716754]
[1742141112124,29.88389779,129.39,129.37,11.96461528]
[1742141113126,29.88389779,129.4,129.37,11.96461528]
[1742141113920,29.88389779,129.4,129.38,11.96461528]
[1742141114127,29.88389779,129.39,129.38,11.96461528]
[1742141114930,7.7285,129.39,129.38,11.96461528]
[1742141115113,37.61239779,129.39,129.38,11.96461528]
[1742141116334,37.61239779,129.39,129.34,48.69716754]
[1742141116644,29.88389779,129.38,129.34,48.69716754]
[1742141117836,37.61299779,129.38,129.34,48.69716754]
[1742141118543,29.88389779,129.38,129.34,48.69716754]
[1742141119540,37.61319779,129.38,129.34,48.69716754]
[1742141119918,7.7273,129.41,129.35,30.16822093]
[1742141120118,0.03,129.42,129.38,20.0]
[1742141120367,0.03,129.42,129.39,0.28432314]
[1742141120524,0.03,129.42,129.4,29.88389779]
[1742141120826,0.03,129.42,129.4,30.02605936]
[1742141121027,0.03,129.42,129.39,0.14216157]
[1742141121231,0.03,129.42,129.38,6.2221]
[1742141121437,29.88389779,129.39,129.36,0.14216157]
[1742141121683,29.88389779,129.39,129.35,6.2221]
[1742141121832,29.88389779,129.36,129.34,80.737]
[1742141122039,0.03,129.41,129.34,80.737]
[1742141122250,0.03,129.41,129.34,110.62089779]
[1742141122251,29.88389779,129.39,129.34,110.62089779]
[1742141122541,29.88389779,129.38,129.34,110.62089779]
[1742141122742,29.88389779,129.38,129.34,80.737]
[1742141123464,29.88389779,129.37,129.34,80.737]
[1742141123754,29.88389779,129.35,129.34,0.063]
[1742141125139,18.69780981,129.35,129.34,0.063]
[1742141125353,18.69780981,129.36,129.34,0.063]
[1742141125842,7.73,129.37,129.34,0.063]
[1742141125843,18.69780981,129.37,129.34,0.063]
[1742141126049,18.69780981,129.38,129.34,18.76080981]
[1742141126249,18.69780981,129.38,129.34,0.063]
[1742141126949,18.69780981,129.37,129.34,0.063]
[1742141127343,18.69780981,129.38,129.34,7.7945]
[1742141127642,18.69780981,129.39,129.34,26.49230981]
[1742141128047,18.69780981,129.38,129.34,7.7945]
[1742141128838,18.69780981,129.39,129.35,18.64964886]
[1742141129225,18.69780981,129.4,129.36,7.7303]
[1742141129433,18.72780981,129.41,129.37,6.2589]
[1742141130144,18.69780981,129.4,129.37,6.2589]
[1742141130532,18.72780981,129.41,129.37,6.2589]
[1742141131458,0.03,129.41,129.37,13.9884]
[1742141131655,18.69780981,129.4,129.37,13.9884]
[1742141133760,0.03,129.41,129.36,88.4041]
[1742141133761,18.69780981,129.39,129.36,88.4041]
[1742141134758,18.69780981,129.38,129.36,80.674]
[1742141134962,18.69780981,129.38,129.34,105.64554886]
[1742141135138,18.69780981,129.38,129.35,7.7309]
[1742141135329,18.69780981,129.39,129.35,7.7309]
[1742141135540,18.69780981,129.4,129.35,45.70794886]
[1742141136333,18.69780981,129.39,129.35,45.70794886]
[1742141136750,18.69780981,129.4,129.35,64.40575867]
[1742141138245,18.72780981,129.41,129.37,7.7297]
[1742141138454,18.72780981,129.41,129.37,107.7281]
[1742141138652,18.69780981,129.4,129.37,88.4037]
[1742141138870,18.69780981,129.39,129.37,80.674]
[1742141139030,0.03,129.41,129.37,80.674]
[1742141139234,0.03,129.41,129.4,38.69780981]
[1742141139435,0.03,129.41,129.4,57.34745867]
[1742141139730,0.03,129.41,129.4,20.0]
[1742141140362,0.03,129.41,129.4,27.7279]
[1742141140742,0.03,129.41,129.4,46.42570981]
[1742141140941,0.03,129.41,129.4,27.7279]
[1742141141457,0.03,129.41,129.4,46.42570981]
[1742141141836,0.03,129.42,129.4,52.68460981]
[1742141142053,0.03,129.42,129.41,18.69780981]
[1742141142252,0.03,129.42,129.41,26.42510981]
[1742141142581,0.03,129.42,129.41,125.89092024]
[1742141144154,2.8012665,129.48,129.42,18.79181043]
[1742141144374,21.49907631,129.48,129.43,26.42390981]
[1742141144653,2.8012665,129.48,129.44,18.69780981]
[1742141145240,2.8012665,129.48,129.44,99.37180981]
[1742141145456,2.8012665,129.48,129.45,18.69780981]
[1742141146367,2.8012665,129.48,129.47,26.56367138]
[1742141147051,2.8012665,129.48,129.47,7.7237]
[1742141148080,2.8012665,129.48,129.47,126.02948181]
[1742141149060,6.65e-05,129.48,129.47,126.02948181]
[1742141149246,6.65e-05,129.48,129.47,144.72729162]
[1742141150057,6.65e-05,129.48,129.47,126.02948181]
[1742141150589,0.03,129.54,129.47,164.03669162]
[1742141150764,0.03,129.54,129.52,18.69780981]
[1742141151166,0.03,129.54,129.51,38.69780981]
[1742141151885,0.03,129.54,129.52,7.7208]
[1742141152686,0.03,129.54,129.51,108.3952]
[1742141153476,0.03,129.54,129.51,127.09300981]
[1742141153891,0.03,129.54,129.51,100.674]
[1742141154067,0.03,129.54,129.51,108.3953]
[1742141155572,0.03,129.54,129.52,18.79181043]
[1742141155885,0.03,129.54,129.53,26.51201043]
[1742141156075,0.03,129.54,129.53,45.20982024]
[1742141156280,0.03,129.54,129.53,126.02598181]
[1742141156798,0.03,129.54,129.53,125.88382024]
[1742141157088,0.03,129.54,129.53,107.18601043]
[1742141157265,0.03,129.54,129.53,126.02598181]
[1742141157466,0.03,129.54,129.53,107.18601043]
[1742141157986,0.03,129.54,129.51,18.79181043]
[1742141158191,0.03,129.54,129.53,20.0]
[1742141159982,0.03,129.54,129.51,107.18701043]
[1742141160196,0.03,129.54,129.53,20.0]
[1742141162005,18.72780981,129.54,129.51,80.674]
[1742141162374,0.03,129.54,129.51,88.3953]
[1742141162581,0.03,129.54,129.51,107.09310981]
[1742141162990,0.03,129.54,129.51,88.3953]
[1742141164090,0.03,129.54,129.51,80.674]
[1742141164299,18.72780981,129.54,129.51,80.674]
[1742141164789,18.72780981,129.54,129.51,88.3954]
[1742141164978,0.03,129.54,129.51,88.3954]
[1742141165183,0.03,129.54,129.52,18.79181043]
[1742141165495,0.03,129.54,129.52,37.48962024]
[1742141166092,0.03,129.54,129.52,18.79181043]
[1742141166291,0.03,129.54,129.52,26.51231043]
[1742141166477,0.03,129.54,129.52,7.7205]
[1742141167912,0.03,129.54,129.52,26.41830981]
[1742141168216,0.03,129.54,129.53,37.48962024]
[1742141168372,0.03,129.54,129.53,45.20982024]
[1742141168796,0.03,129.54,129.53,51.47632024]
[1742141169007,0.03,129.54,129.53,51.61848181]
[1742141169310,0.03,129.54,129.53,132.29248181]
[1742141169987,0.0001,129.54,129.53,133.4499064]
[1742141172808,0.0001,129.54,129.53,125.88382024]
[1742141173398,0.0001,129.54,129.53,126.02598181]
[1742141173784,0.0001,129.54,129.53,107.328172]
[1742141174811,0.0001,129.54,129.53,126.02598181]
[1742141175013,0.0001,129.54,129.53,107.18601043]
[1742141175402,0.0001,129.54,129.53,80.674]
[1742141177415,0.0001,129.54,129.53,126.02598181]
[1742141179920,0.0001,129.54,129.53,126.08898181]
[1742141185629,0.0001,129.54,129.53,129.95423551]
[1742141186128,20.31220981,129.61,129.57,20.0]
[1742141186329,20.31220981,129.61,129.56,18.933972]
[1742141186627,7.7142,129.63,129.56,18.933972]
[1742141186919,18.69780981,129.61,129.56,18.933972]
[1742141187123,18.69780981,129.61,129.57,7.7178]
[1742141187626,18.69780981,129.6,129.57,7.7178]
[1742141187817,18.69780981,129.6,129.56,7.7181]
[1742141187999,18.69780981,129.58,129.57,20.0]
[1742141188321,18.69780981,129.6,129.57,20.0]
[1742141189204,11.92050098,129.6,129.57,27.7176]
[1742141190316,11.92050098,129.59,129.57,20.0]
[1742141190505,11.92050098,129.58,129.53,84.6022537]
[1742141190710,11.92050098,129.57,129.53,84.6022537]
[1742141191420,1.5376,129.59,129.54,7.7196]
[1742141191613,11.92050098,129.58,129.54,7.7196]
[1742141194630,0.03,129.6,129.56,11.92050098]
[1742141194923,0.03,129.6,129.59,0.28432314]
[1742141195145,0.03,129.6,129.59,30.85447298]
[1742141196208,0.03,129.6,129.59,38.57107298]
[1742141196407,0.03,129.6,129.59,119.24507298]
[1742141196809,0.03,129.6,129.59,119.10291141]
[1742141197221,0.03,129.6,129.59,125.7955147]
[1742141197804,0.03,129.6,129.59,88.3906]
[1742141201432,0.03,129.6,129.59,125.7955147]
[1742141203629,0.03,129.6,129.59,125.93767627]
[1742141203827,0.03,129.6,129.59,127.09455856]
[1742141204133,18.61310427,129.66,129.6,80.644]
[1742141204316,0.03,129.67,129.63,18.61310427]
[1742141204645,18.64310427,129.67,129.63,88.3578]
[1742141204820,18.14310427,129.67,129.63,88.3578]
[1742141205024,18.61310427,129.65,129.62,7.7146]
[1742141206143,18.61310427,129.66,129.62,7.7146]
[1742141207337,18.61310427,129.65,129.61,88.3594]
[1742141207542,18.61310427,129.65,129.61,80.644]
[1742141207840,18.61310427,129.64,129.61,80.644]
[1742141208025,18.61310427,129.62,129.58,98.91027594]
[1742141209340,18.61310427,129.62,129.58,80.644]
[1742141209544,18.61310427,129.62,129.58,88.3612]
[1742141210148,18.61310427,129.62,129.58,80.644]
[1742141210336,18.61310427,129.62,129.56,99.25710427]
[1742141210536,18.61310427,129.6,129.56,88.3621]
[1742141210743,18.61310427,129.61,129.56,106.97520427]
[1742141211043,6.76,129.63,129.56,106.97520427]
[1742141211337,6.76,129.63,129.57,18.61310427]
[1742141211544,33.08760427,129.63,129.58,18.61310427]
[1742141211842,18.61310427,129.62,129.57,18.61310427]
[1742141212035,33.08760427,129.63,129.58,18.61310427]
[1742141212420,33.08760427,129.63,129.58,26.32980427]
[1742141212617,25.37310427,129.63,129.58,26.32980427]
[1742141212816,18.61310427,129.62,129.58,7.7167]
[1742141213434,14.4743,129.63,129.58,7.7167]
[1742141213631,18.61310427,129.62,129.58,7.7167]
[1742141214045,6.76,129.63,129.58,26.32980427]
[1742141214248,18.61310427,129.62,129.58,7.7167]
[1742141214845,18.61310427,129.6,129.56,84.57447714]
[1742141215042,20.13220427,129.62,129.57,18.61310427]
[1742141215248,20.13220427,129.62,129.57,99.25710427]
[1742141215646,18.61310427,129.61,129.57,80.644]
[1742141216550,20.13220427,129.62,129.58,7.7172]
[1742141217338,20.13220427,129.62,129.58,88.3612]
[1742141217339,18.61310427,129.62,129.58,88.3612]
[1742141217533,25.37310427,129.63,129.58,106.97430427]
[1742141217741,18.61310427,129.63,129.58,106.97430427]
[1742141218341,18.61310427,129.62,129.58,88.3612]
[1742141218652,9.2324,129.65,129.58,80.644]
[1742141218653,18.61310427,129.61,129.58,80.644]
[1742141219452,1.5424,129.72,129.61,0.14216157]
[1742141219628,18.61310427,129.68,129.62,18.61310427]
[1742141219832,18.61310427,129.68,129.62,99.25710427]
[1742141220033,27.86440427,129.72,129.62,99.25710427]
[1742141220235,18.61310427,129.68,129.62,99.25710427]
[1742141220436,18.61310427,129.68,129.63,7.7142]
[1742141220757,18.61310427,129.68,129.63,26.32730427]
[1742141221136,18.61310427,129.68,129.63,7.7142]
[1742141221755,18.61310427,129.68,129.63,45.61290427]
[1742141222054,18.61310427,129.69,129.63,45.61290427]
[1742141222353,18.61310427,129.71,129.65,18.61310427]
[1742141222552,18.61310427,129.71,129.65,105.45940427]
[1742141222758,18.61310427,129.71,129.66,18.61310427]
[1742141223348,20.15550427,129.72,129.66,18.61310427]
[1742141223545,18.61310427,129.71,129.66,18.61310427]
[1742141223744,1.5424,129.72,129.65,105.45940427]
[1742141223745,18.61310427,129.7,129.65,105.45940427]